fUST/lending_fUST_20250929
["ID","MTS","AMOUNT","RATE_DAILY","PERIOD"]
[388331428,1759101039966,-3963.2,0.00029094,7]
[388331429,1759101039975,-800.46,0.00029094,7]
[388331430,1759101039985,-619.67,0.00029094,7]
[388331431,1759101039995,-1677.88,0.00029094,7]
[388331432,1759101040004,-1332.68,0.00029094,7]
[388331433,1759101040013,-1066.28,0.00029094,7]
[388331435,1759101040023,-512.28,0.00029094,7]
[388331436,1759101040032,-480.0,0.00029094,7]
[388331438,1759101040041,-624.32,0.00029094,7]
[388331440,1759101040051,-480.0,0.00029094,7]
[388331442,1759101040060,-1107.96,0.00029094,7]
[388331444,1759101040069,-1161.36,0.00029094,7]
[388331446,1759101040078,-480.0,0.00029094,7]
[388331448,1759101040088,-480.0,0.00029094,7]
[388331450,1759101040097,-585.66,0.00029094,7]
[388331452,1759101040107,-2941.18,0.00029094,7]
[388331454,1759101040116,-480.0,0.00029094,7]
[388331456,1759101040126,-1006.22,0.00029094,7]
[388331458,1759101040135,-775.76,0.00029094,7]
[388331460,1759101040144,-2057.04,0.00029094,7]
[388331462,1759101040154,-576.97,0.00029094,7]
[388331464,1759101040163,-1798.83,0.00029094,7]
[388331466,1759101040174,-480.0,0.00029094,7]
[388331468,1759101040183,-944.44,0.00029094,7]
[388331470,1759101040192,-480.0,0.00029095,7]
[388331472,1759101040201,-1354.67,0.00029095,7]
[388331474,1759101040210,-1428.02,0.00029095,7]
[388331476,1759101040220,-8414.85,0.00029095,7]
[388331478,1759101040229,-480.0,0.00029095,7]
[388331480,1759101040238,-402.50792916,0.00029095,7]
[388331482,1759101040248,-5654.3,0.00029096,7]
[388331484,1759101040257,-160.0,0.00029133,2]
[388331486,1759101040266,-262.41172371,0.0002922,2]
[388331488,1759101040275,-480.0,0.00029269,7]
[388331490,1759101040284,-1403.9,0.00029355,7]
[388331492,1759101040293,-480.0,0.00029355,7]
[388331494,1759101040303,-480.0,0.00029355,7]
[388331496,1759101040312,-480.0,0.00029365,7]
[388331498,1759101040321,-2379.02298549,0.00029367,2]
[388331500,1759101040331,-2311.05,0.00029367,7]
[388331502,1759101040340,-669.61,0.00029367,7]
[388331520,1759101040530,-1025.61,0.00029367,7]
[388331522,1759101040540,-8789.58,0.00029367,7]
[388331523,1759101040550,-3883.01,0.00029367,7]
[388331524,1759101040559,-481.97,0.00029367,7]
[388331525,1759101040569,-955.26,0.00029367,7]
[388331526,1759101040578,-4126.12,0.00029367,7]
[388331527,1759101040587,-692.72,0.00029368,7]
[388331528,1759101040596,-480.0,0.00029368,7]
[388331530,1759101040606,-1824.27,0.00029368,7]
[388331532,1759101040615,-480.0,0.00029368,7]
[388331534,1759101040629,-480.0,0.00029368,7]
[388331536,1759101040639,-480.0,0.00029368,7]
[388331538,1759101040648,-932.37,0.00029368,7]
[388331540,1759101040657,-480.0,0.00029368,7]
[388331542,1759101040667,-3963.2,0.00029368,7]
[388331544,1759101040676,-800.46,0.00029368,7]
[388331546,1759101040685,-619.67,0.00029368,7]
[388331548,1759101040696,-1677.88,0.00029368,7]
[388331550,1759101040705,-1332.68,0.00029368,7]
[388331552,1759101040714,-512.28,0.00029368,7]
[388331554,1759101040724,-1066.28,0.00029368,7]
[388331555,1759101040734,-480.0,0.00029368,7]
[388331557,1759101040744,-624.32,0.00029368,7]
[388331559,1759101040753,-480.0,0.00029368,7]
[388331560,1759101040762,-1107.96,0.00029368,7]
[388331561,1759101040771,-480.0,0.00029368,7]
[388331562,1759101040780,-1161.36,0.00029368,7]
[388331563,1759101040789,-480.0,0.00029368,7]
[388331564,1759101040798,-585.66,0.00029368,7]
[388331565,1759101040807,-2941.18,0.00029368,7]
[388331566,1759101040816,-480.0,0.00029368,7]
[388331567,1759101040826,-1006.22,0.00029368,7]
[388331568,1759101040834,-775.76,0.00029368,7]
[388331569,1759101040843,-2057.04,0.00029368,7]
[388331570,1759101040853,-576.97,0.00029368,7]
[388331571,1759101040862,-1798.83,0.00029368,7]
[388331572,1759101040871,-480.0,0.00029368,7]
[388331573,1759101040880,-944.44,0.00029368,7]
[388331574,1759101040889,-480.0,0.00029369,7]
[388331575,1759101040899,-1354.67,0.00029369,7]
[388331576,1759101040908,-1428.02,0.00029369,7]
[388331577,1759101040918,-8414.85,0.00029369,7]
[388331578,1759101040927,-480.0,0.00029369,7]
[388331579,1759101040936,-160.0,0.0002937,7]
[388331580,1759101040946,-388.008,0.0002937,22]
[388331581,1759101040956,-5654.3,0.0002937,7]
[388331582,1759101040965,-2810.80625584,0.00029579,2]
[388331583,1759101040976,-151.0,0.00029624,2]
[388331584,1759101040986,-1403.9,0.00029629,7]
[388331585,1759101040996,-279.36,0.00029629,7]
[388331586,1759101041006,-488.11314074,0.00029629,7]
[388331587,1759101041015,-151.0,0.00029631,7]
[388331588,1759101041025,-153.04937,0.00029631,7]
[388331589,1759101041034,-151.0,0.00029631,7]
[388331590,1759101041043,-151.0,0.00029631,7]
[388331591,1759101041053,-151.0,0.00029631,7]
[388331592,1759101041063,-151.0,0.00029631,7]
[388331593,1759101041071,-151.0,0.00029631,7]
[388331594,1759101041081,-151.0,0.00029631,7]
[388331595,1759101041090,-151.0,0.00029631,7]
[388331596,1759101041099,-151.0,0.00029631,7]
[388331597,1759101041108,-151.0,0.00029631,7]
[388331598,1759101041118,-152.220404,0.00029631,7]
[388331599,1759101041127,-21719.3611234,0.00029632,2]
[388331600,1759101041136,-151.0,0.00029632,7]
[388331601,1759101041146,-151.0,0.00029632,7]
[388331602,1759101041155,-151.0,0.00029632,7]
[388331603,1759101041164,-480.0,0.00029639,7]
[388331604,1759101041174,-151.0,0.00029641,7]
[388331605,1759101041183,-160.0,0.00029641,2]
[388331606,1759101041192,-151.0,0.00029641,7]
[388331607,1759101041201,-151.0,0.00029641,7]
[388331608,1759101041210,-154.727976,0.00029641,7]
[388331609,1759101041219,-151.0,0.00029641,7]
[388331610,1759101041228,-242.443047,0.00029641,7]
[388331611,1759101041239,-151.0,0.00029641,7]
[388331612,1759101041249,-151.0,0.00029641,7]
[388331613,1759101041258,-151.0,0.00029641,7]
[388331614,1759101041267,-151.0,0.00029641,7]
[388331615,1759101041277,-152.598444,0.00029641,7]
[388331616,1759101041286,-151.0,0.00029641,7]
[388331617,1759101041295,-151.0,0.00029641,7]
[388331618,1759101041305,-151.0,0.00029641,7]
[388331619,1759101041314,-151.0,0.00029641,7]
[388331620,1759101041323,-151.0,0.00029641,7]
[388331621,1759101041333,-296.059129,0.00029641,7]
[388331622,1759101041343,-347.014288,0.00029641,7]
[388331623,1759101041352,-347.014288,0.00029641,7]
[388331624,1759101041361,-347.014288,0.00029641,7]
[388331625,1759101041370,-347.014288,0.00029641,7]
[388331626,1759101041380,-347.014288,0.00029641,7]
[388331627,1759101041389,-347.014288,0.00029641,7]
[388331628,1759101041398,-347.014288,0.00029641,7]
[388331629,1759101041407,-347.014288,0.00029641,7]
[388331630,1759101041416,-151.0,0.00029641,2]
[388331631,1759101041426,-500.0,0.00029641,2]
[388331632,1759101041435,-151.0,0.00029641,2]
[388331633,1759101041444,-198.0,0.00029641,2]
[388331634,1759101041453,-2311.05,0.00029641,7]
[388331635,1759101041463,-669.61,0.00029641,7]
[388331636,1759101041472,-1025.61,0.00029641,7]
[388331637,1759101041481,-8789.58,0.00029641,7]
[388331638,1759101041492,-3883.01,0.00029641,7]
[388331639,1759101041502,-481.97,0.00029641,7]
[388331640,1759101041512,-955.26,0.00029641,7]
[388331641,1759101041522,-4126.12,0.00029641,7]
[388331642,1759101041531,-1305.8752058,0.00029642,2]
[388331643,1759101041541,-11514.3575602,0.00029642,2]
[388331644,1759101041550,-152.866461,0.00029642,7]
[388331645,1759101041559,-251.337169,0.00029642,7]
[388331646,1759101041568,-151.0,0.00029642,7]
[388331647,1759101041578,-152.309656,0.00029642,7]
[388331648,1759101041587,-153.412685,0.00029642,7]
[388331649,1759101041596,-151.537383,0.00029642,7]
[388331650,1759101041606,-151.0,0.00029642,7]
[388331651,1759101041616,-151.0,0.00029642,7]
[388331652,1759101041629,-151.0,0.00029642,7]
[388331653,1759101041639,-151.0,0.00029642,7]
[388331654,1759101041648,-151.0,0.00029642,7]
[388331655,1759101041658,-207.93473,0.00029642,7]
[388331656,1759101041667,-207.93473,0.00029642,7]
[388331657,1759101041676,-207.93473,0.00029642,7]
[388331658,1759101041686,-207.93473,0.00029642,7]
[388331659,1759101041695,-151.0,0.00029642,7]
[388331660,1759101041705,-151.0,0.00029642,7]
[388331661,1759101041715,-12008.6576949,0.00029642,2]
[388331662,1759101041724,-151.0,0.00029642,7]
[388331663,1759101041734,-151.0,0.00029642,7]
[388331664,1759101041744,-151.0,0.00029642,7]
[388331665,1759101041754,-370.627173,0.00029642,7]
[388331666,1759101041763,-370.627173,0.00029642,7]
[388331667,1759101041772,-370.627173,0.00029642,7]
[388331668,1759101041781,-370.627173,0.00029642,7]
[388331669,1759101041791,-151.0,0.00029642,7]
[388331670,1759101041800,-154.297007,0.00029642,7]
[388331671,1759101041810,-151.0,0.00029642,7]
[388331672,1759101041820,-151.0,0.00029642,7]
[388331673,1759101041829,-151.0,0.00029642,7]
[388331674,1759101041838,-151.0,0.00029642,7]
[388331675,1759101041847,-151.0,0.00029642,7]
[388331676,1759101041856,-151.0,0.00029642,7]
[388331677,1759101041866,-151.0,0.00029642,7]
[388331678,1759101041875,-151.0,0.00029642,7]
[388331679,1759101041884,-151.0,0.00029642,7]
[388331680,1759101041894,-151.0,0.00029642,7]
[388331681,1759101041903,-151.0,0.00029642,7]
[388331682,1759101041911,-151.0,0.00029642,7]
[388331683,1759101041920,-151.0,0.00029642,7]
[388331684,1759101041929,-151.0,0.00029642,7]
[388331685,1759101041939,-152.44373,0.00029642,7]
[388331686,1759101041948,-151.0,0.00029642,7]
[388331687,1759101041957,-151.0,0.00029642,7]
[388331688,1759101041967,-156.609472,0.00029642,7]
[388331689,1759101041976,-151.0,0.00029642,7]
[388331690,1759101041985,-185.490394,0.00029642,7]
[388331691,1759101041995,-151.0,0.00029642,7]
[388331692,1759101042005,-176.136696,0.00029642,7]
[388331693,1759101042014,-153.245042,0.00029642,7]
[388331694,1759101042023,-192.968453,0.00029642,7]
[388331695,1759101042031,-152.222469,0.00029642,7]
[388331696,1759101042040,-153.934691,0.00029642,7]
[388331697,1759101042050,-151.0,0.00029642,2]
[388331698,1759101042060,-151.0,0.00029642,7]
[388331699,1759101042069,-151.0,0.00029642,7]
[388331700,1759101042078,-151.0,0.00029642,7]
[388331701,1759101042086,-151.0,0.00029642,7]
[388331702,1759101042096,-151.0,0.00029642,7]
[388331703,1759101042105,-151.0,0.00029642,7]
[388331704,1759101042115,-151.0,0.00029642,2]
[388331705,1759101042124,-500.0,0.00029642,2]
[388331706,1759101042133,-347.014288,0.00029642,7]
[388331707,1759101042144,-347.014288,0.00029642,7]
[388331708,1759101042156,-347.014288,0.00029642,7]
[388331709,1759101042165,-347.014288,0.00029642,7]
[388331710,1759101042175,-347.014288,0.00029642,7]
[388331711,1759101042184,-347.014288,0.00029642,7]
[388331712,1759101042192,-347.014288,0.00029642,7]
[388331713,1759101042202,-347.014288,0.00029642,7]
[388331714,1759101042211,-692.72,0.00029642,7]
[388331715,1759101042220,-480.0,0.00029642,7]
[388331716,1759101042229,-1824.27,0.00029642,7]
[388331717,1759101042238,-480.0,0.00029642,7]
[388331718,1759101042248,-310.48163412,0.00029642,7]
[388331719,1759101042257,-480.0,0.00029642,7]
[388331720,1759101042267,-932.37,0.00029642,7]
[388331721,1759101042277,-480.0,0.00029642,7]
[388331722,1759101042286,-3963.2,0.00029642,7]
[388331723,1759101042296,-800.46,0.00029642,7]
[388331724,1759101042306,-619.67,0.00029642,7]
[388331725,1759101042316,-1677.88,0.00029642,7]
[388331726,1759101042325,-1332.68,0.00029642,7]
[388331727,1759101042335,-512.28,0.00029642,7]
[388331728,1759101042345,-1066.28,0.00029642,7]
[388331729,1759101042354,-480.0,0.00029642,7]
[388331730,1759101042363,-624.32,0.00029642,7]
[388331731,1759101042372,-480.0,0.00029642,7]
[388331732,1759101042381,-1107.96,0.00029642,7]
[388331733,1759101042390,-151.0,0.00029642,7]
[388331734,1759101042399,-151.0,0.00029642,7]
[388331735,1759101042408,-151.0,0.00029642,7]
[388331736,1759101042416,-480.0,0.00029642,7]
[388331737,1759101042426,-1161.36,0.00029642,7]
[388331738,1759101042435,-151.0,0.00029642,7]
[388331739,1759101042445,-480.0,0.00029642,7]
[388331740,1759101042454,-585.66,0.00029642,7]
[388331741,1759101042464,-2941.18,0.00029642,7]
[388331742,1759101042472,-480.0,0.00029642,7]
[388331743,1759101042481,-1006.22,0.00029642,7]
[388331744,1759101042491,-775.76,0.00029642,7]
[388331745,1759101042500,-2057.04,0.00029642,7]
[388331746,1759101042509,-576.97,0.00029642,7]
[388331747,1759101042519,-1798.83,0.00029642,7]
[388331748,1759101042528,-480.0,0.00029642,7]
[388331749,1759101042537,-944.44,0.00029642,7]
[388331750,1759101042547,-480.0,0.00029643,7]
[388331751,1759101042556,-1354.67,0.00029643,7]
[388331752,1759101042565,-1428.02,0.00029643,7]
[388331753,1759101042574,-8414.85,0.00029643,7]
[388331754,1759101042584,-480.0,0.00029643,7]
[388331755,1759101042593,-5654.3,0.00029644,7]
[388331756,1759101042602,-260.0,0.00029681,2]
[388331757,1759101042611,-734.31,0.00029834,3]
[388331758,1759101042624,-5668.05437916,0.00029844,2]
[388331759,1759101042634,-151.0,0.00029844,7]
[388331760,1759101042643,-151.0,0.00029844,7]
[388331761,1759101042652,-151.0,0.00029844,7]
[388331762,1759101042663,-151.0,0.00029844,7]
[388331763,1759101042672,-347.014288,0.00029844,7]
[388331764,1759101042681,-347.014288,0.00029844,7]
[388331765,1759101042691,-347.014288,0.00029844,7]
[388331766,1759101042702,-347.014293,0.00029844,7]
[388331767,1759101042711,-962.92,0.00029877,7]
[388331768,1759101042720,-480.0,0.00029877,7]
[388331769,1759101042730,-480.0,0.00029877,7]
[388331770,1759101042739,-248.50770926,0.00029877,7]
[388331771,1759101042748,-480.0,0.00029877,7]
[388331772,1759101042757,-480.0,0.00029877,7]
[388331773,1759101042766,-764.66,0.00029877,7]
[388331774,1759101042775,-480.0,0.00029877,7]
[388331775,1759101042784,-480.0,0.00029877,7]
[388331777,1759101042794,-628.15,0.00029877,7]
[388331779,1759101042803,-480.0,0.00029877,7]
[388331780,1759101042812,-637.08,0.00029877,7]
[388331782,1759101042826,-482.7642323,0.00029877,7]
[388331783,1759101042836,-480.0,0.00029878,7]
[388331784,1759101042847,-942.44,0.00029878,7]
[388331785,1759101042858,-1926.36,0.00029878,7]
[388331786,1759101042867,-166.0,0.00029902,2]
[388331787,1759101042876,-420.0,0.00029902,2]
[388331788,1759101042885,-1403.9,0.00029903,7]
[388331789,1759101042895,-244.76,0.00029905,3]
[388331790,1759101042904,-1174.86,0.00029906,3]
[388331791,1759101042913,-587.43,0.00029906,3]
[388331792,1759101042922,-293.71,0.00029906,3]
[388331793,1759101042932,-480.0,0.00029913,7]
[388331794,1759101042942,-500.0,0.00029915,2]
[388331795,1759101042951,-161.73256297,0.00029915,2]
[388331796,1759101042960,-151.0,0.00029915,7]
[388331797,1759101042970,-187.036152,0.00029915,7]
[388331799,1759101042979,-370.627173,0.00029915,7]
[388331801,1759101042988,-370.627173,0.00029915,7]
[388331803,1759101042998,-370.627173,0.00029915,7]
[388331805,1759101043007,-370.627173,0.00029915,7]
[388331807,1759101043016,-162.564611,0.00029915,7]
[388331808,1759101043025,-151.0,0.00029915,7]
[388331809,1759101043034,-151.0,0.00029915,7]
[388331810,1759101043043,-156.23679,0.00029915,7]
[388331811,1759101043052,-151.0,0.00029915,7]
[388331812,1759101043061,-155.253645,0.00029915,7]
[388331813,1759101043070,-151.0,0.00029915,7]
[388331814,1759101043079,-151.0,0.00029915,7]
[388331816,1759101043087,-151.0,0.00029915,7]
[388331817,1759101043096,-151.0,0.00029915,7]
[388331818,1759101043106,-151.0,0.00029915,7]
[388331819,1759101043115,-151.0,0.00029915,7]
[388331820,1759101043123,-151.0,0.00029915,7]
[388331821,1759101043133,-277.939126,0.00029915,7]
[388331822,1759101043142,-2311.05,0.00029915,7]
[388331823,1759101043152,-669.61,0.00029915,7]
[388331824,1759101043162,-1025.61,0.00029915,7]
[388331825,1759101043171,-8789.58,0.00029915,7]
[388331826,1759101043180,-3883.01,0.00029915,7]
[388331827,1759101043189,-481.97,0.00029915,7]
[388331828,1759101043199,-955.26,0.00029915,7]
[388331829,1759101043208,-4126.12,0.00029915,7]
[388331830,1759101043217,-151.0,0.00029916,2]
[388331831,1759101043226,-500.0,0.00029916,2]
[388331832,1759101043235,-151.0,0.00029916,7]
[388331833,1759101043245,-151.0,0.00029916,7]
[388331834,1759101043255,-154.853042,0.00029916,7]
[388331835,1759101043264,-151.0,0.00029916,7]
[388331837,1759101043272,-151.0,0.00029916,7]
[388331839,1759101043281,-152.152954,0.00029916,7]
[388331840,1759101043291,-152.360311,0.00029916,7]
[388331841,1759101043300,-151.0,0.00029916,7]
[388331842,1759101043309,-370.627173,0.00029916,7]
[388331843,1759101043317,-370.627173,0.00029916,7]
[388331844,1759101043327,-370.627173,0.00029916,7]
[388331845,1759101043336,-370.627173,0.00029916,7]
[388331846,1759101043345,-151.0,0.00029916,7]
[388331847,1759101043355,-151.0,0.00029916,7]
[388331848,1759101043364,-151.0,0.00029916,7]
[388331849,1759101043373,-151.0,0.00029916,7]
[388331850,1759101043382,-151.0,0.00029916,7]
[388331851,1759101043391,-151.0,0.00029916,7]
[388331852,1759101043400,-151.0,0.00029916,7]
[388331853,1759101043409,-151.0,0.00029916,7]
[388331854,1759101043418,-692.72,0.00029916,7]
[388331855,1759101043427,-480.0,0.00029916,7]
[388331856,1759101043436,-1824.27,0.00029916,7]
[388331857,1759101043445,-480.0,0.00029916,7]
[388331858,1759101043455,-480.0,0.00029916,7]
[388331859,1759101043464,-932.37,0.00029916,7]
[388331860,1759101043473,-480.0,0.00029916,7]
[388331861,1759101043483,-3963.2,0.00029916,7]
[388331862,1759101043492,-800.46,0.00029916,7]
[388331863,1759101043501,-619.67,0.00029916,7]
[388331864,1759101043510,-1677.88,0.00029916,7]
[388331865,1759101043519,-1332.68,0.00029916,7]
[388331866,1759101043528,-512.28,0.00029916,7]
[388331867,1759101043537,-1066.28,0.00029916,7]
[388331868,1759101043546,-480.0,0.00029916,7]
[388331869,1759101043556,-624.32,0.00029916,7]
[388331870,1759101043565,-480.0,0.00029916,7]
[388331871,1759101043574,-1107.96,0.00029916,7]
[388331872,1759101043584,-1161.36,0.00029916,7]
[388331873,1759101043592,-480.0,0.00029916,7]
[388331874,1759101043602,-480.0,0.00029916,7]
[388331875,1759101043611,-585.66,0.00029916,7]
[388331876,1759101043622,-2941.18,0.00029916,7]
[388331877,1759101043632,-480.0,0.00029916,7]
[388331878,1759101043641,-1006.22,0.00029916,7]
[388331879,1759101043651,-775.76,0.00029916,7]
[388331880,1759101043660,-2057.04,0.00029916,7]
[388331881,1759101043669,-576.97,0.00029916,7]
[388331882,1759101043678,-1798.83,0.00029916,7]
[388331883,1759101043687,-480.0,0.00029916,7]
[388331884,1759101043696,-944.44,0.00029916,7]
[388331885,1759101043705,-8636.224408,0.00029916,2]
[388331886,1759101043714,-480.0,0.00029917,7]
[388331887,1759101043723,-1354.67,0.00029917,7]
[388331888,1759101043732,-1428.02,0.00029917,7]
[388331889,1759101043741,-8414.85,0.00029917,7]
[388331890,1759101043750,-480.0,0.00029917,7]
[388331891,1759101043759,-207.93473,0.00029918,7]
[388331892,1759101043768,-207.93473,0.00029918,7]
[388331893,1759101043777,-207.93473,0.00029918,7]
[388331894,1759101043787,-207.93473,0.00029918,7]
[388331895,1759101043796,-152.447151,0.00029918,7]
[388331896,1759101043805,-151.0,0.00029918,7]
[388331897,1759101043814,-151.0,0.00029918,7]
[388331898,1759101043823,-5654.3,0.00029918,7]
[388331899,1759101043833,-21719.3611234,0.00029948,2]
[388331900,1759101043842,-151.0,0.00029953,7]
[388331901,1759101043851,-152.345222,0.00029953,7]
[388331902,1759101043861,-151.0,0.00029953,7]
[388331903,1759101043871,-151.0,0.00029953,7]
[388331904,1759101043880,-151.480582,0.00029954,7]
[388331905,1759101043889,-151.0,0.00029954,7]
[388331906,1759101043899,-151.0,0.00029954,7]
[388331907,1759101043908,-151.0,0.00029954,7]
[388331908,1759101043918,-207.93473,0.00029954,7]
[388331909,1759101043927,-207.93473,0.00029954,7]
[388331910,1759101043936,-207.93473,0.00029954,7]
[388331911,1759101043945,-207.93473,0.00029954,7]
[388331912,1759101043954,-207.93473,0.00029954,7]
[388331913,1759101043963,-207.93473,0.00029954,7]
[388331914,1759101043973,-207.93473,0.00029954,7]
[388331915,1759101043982,-207.93473,0.00029954,7]
[388331916,1759101043992,-151.0,0.00029954,7]
[388331917,1759101044001,-151.0,0.00029954,7]
[388331918,1759101044010,-151.0,0.00029955,7]
[388331919,1759101044019,-151.0,0.00029955,7]
[388331920,1759101044028,-151.0,0.00029955,7]
[388331921,1759101044037,-151.0,0.00029955,7]
[388331922,1759101044046,-151.0,0.00029955,7]
[388331923,1759101044055,-153.833325,0.00029955,7]
[388331924,1759101044065,-244.108979,0.00029955,7]
[388331925,1759101044075,-151.0,0.00029955,7]
[388331926,1759101044244,-158.086177,0.00029955,7]
[388331927,1759101044254,-189.440277,0.00029956,7]
[388331928,1759101044264,-151.0,0.00029956,7]
[388331929,1759101044276,-151.0,0.00029956,7]
[388331930,1759101044285,-151.0,0.00029957,7]
[388331931,1759101044294,-370.627173,0.00029957,7]
[388331932,1759101044303,-370.627173,0.00029957,7]
[388331933,1759101044312,-370.627173,0.00029957,7]
[388331934,1759101044321,-370.627173,0.00029957,7]
[388331935,1759101044330,-261.437512,0.00029958,7]
[388331936,1759101044339,-151.0,0.00029958,7]
[388331937,1759101044348,-151.0,0.00029958,7]
[388331938,1759101044357,-151.0,0.00029958,7]
[388331939,1759101044366,-151.0,0.00029958,7]
[388331940,1759101044376,-151.0,0.00029958,7]
[388331941,1759101044385,-207.93473,0.00029958,7]
[388331942,1759101044393,-207.93473,0.00029958,7]
[388331943,1759101044403,-207.93473,0.00029958,7]
[388331944,1759101044411,-207.934726,0.00029958,7]
[388331945,1759101044421,-151.0,0.00029958,7]
[388331946,1759101044430,-233.82138094,0.00029968,7]
[388331947,1759101044439,-151.0,0.00029968,7]
[388331948,1759101044448,-151.0,0.00029968,7]
[388331949,1759101044457,-151.0,0.00029968,7]
[388331950,1759101044466,-151.0,0.00029968,7]
[388331951,1759101044476,-151.0,0.00029968,7]
[388331952,1759101044485,-370.627173,0.00029968,7]
[388331953,1759101044494,-370.627173,0.00029968,7]
[388331954,1759101044503,-370.627173,0.00029968,7]
[388331955,1759101044512,-370.627179,0.00029968,7]
[388331956,1759101044521,-151.0,0.0002997,7]
[388331957,1759101044530,-151.0,0.0002997,7]
[388331958,1759101044540,-151.0,0.0002997,7]
[388331959,1759101044549,-480.0,0.00029978,7]
[388331960,1759101044558,-3947.92,0.00029978,7]
[388331961,1759101044568,-946.25,0.00029978,7]
[388331962,1759101044577,-155.514,0.00029999,2]
[388331963,1759101044586,-194.4165,0.0003,2]
[388331964,1759101044595,-340.0,0.00030032,2]
[388331965,1759101044604,-962.92,0.00030151,7]
[388331966,1759101044614,-480.0,0.00030151,7]
[388331967,1759101044627,-480.0,0.00030151,7]
[388331968,1759101044637,-480.0,0.00030151,7]
[388331969,1759101044646,-480.0,0.00030151,7]
[388331970,1759101044655,-764.66,0.00030151,7]
[388331971,1759101044667,-480.0,0.00030151,7]
[388331972,1759101044677,-480.0,0.00030151,7]
[388331973,1759101044686,-628.15,0.00030151,7]
[388331974,1759101044695,-480.0,0.00030151,7]
[388331975,1759101044706,-637.08,0.00030151,7]
[388331976,1759101044715,-480.0,0.00030152,7]
[388331977,1759101044724,-942.44,0.00030152,7]
[388331978,1759101044733,-1926.36,0.00030152,7]
[388331979,1759101044743,-1403.9,0.00030176,7]
[388331980,1759101044753,-480.0,0.00030187,7]
[388331981,1759101044762,-500.0,0.00030189,2]
[388331982,1759101044771,-2311.05,0.00030189,7]
[388331983,1759101044780,-669.61,0.00030189,7]
[388331984,1759101044790,-1025.61,0.00030189,7]
[388331985,1759101044799,-8789.58,0.00030189,7]
[388331986,1759101044809,-3883.01,0.00030189,7]
[388331987,1759101044819,-481.97,0.00030189,7]
[388331988,1759101044828,-955.26,0.00030189,7]
[388331989,1759101044837,-4126.12,0.00030189,7]
[388331990,1759101044847,-198.329618,0.0003019,2]
[388331991,1759101044856,-500.0,0.0003019,2]
[388331992,1759101044865,-692.72,0.0003019,7]
[388331993,1759101044874,-480.0,0.0003019,7]
[388331994,1759101044883,-1824.27,0.0003019,7]
[388331995,1759101044893,-480.0,0.0003019,7]
[388331996,1759101044902,-480.0,0.0003019,7]
[388331997,1759101044911,-932.37,0.0003019,7]
[388331998,1759101044920,-480.0,0.0003019,7]
[388331999,1759101044929,-3963.2,0.0003019,7]
[388332000,1759101044938,-800.46,0.0003019,7]
[388332001,1759101044947,-619.67,0.0003019,7]
[388332002,1759101044956,-1677.88,0.0003019,7]
[388332003,1759101044965,-1332.68,0.0003019,7]
[388332004,1759101044975,-512.28,0.0003019,7]
[388332005,1759101044984,-1066.28,0.0003019,7]